Cogmind - Beta 15 @@@ ROGUE MODE // 2025.05.21 @ 13:32:26 Player: Epsilon 11 Result: Destroyed by Q5-9PY(R) with Subdweller Beam Cannon Performance ------------- Evolutions (0) 0 Regions Visited (3) 600 Robots Destroyed (19) 95 Value Destroyed (470) 470 Prototype IDs (0) 0 Alien Tech Used (0) 0 Bonus (90) 90 TOTAL SCORE: 1255 Bonus ------- Follower Combat Kills 90 Cogmind --------- Core Integrity 0/250 Matter 207/300 Energy 100/100 System Corruption 10% Temperature Cool (9) Movement Treading (160) Location -10/Subcaves Parts ------- > --- POWER (1) -------- (None) > --- PROPULSION (2) --- Light Treads Light Treads > --- UTILITY (2) ------ (None) > --- WEAPON (2) ------- Flak Cannon > --- INVENTORY (5) ---- Combat Airjet High-capacity Storage Unit Machine Analyzer Medium Laser Improved Datajack Peak State ------------ > --- POWER ------------ Light Nuclear Core > --- PROPULSION ------- Light Treads Light Treads > --- UTILITY ---------- High-capacity Storage Unit Improved Light Armor Plating > --- WEAPON ----------- Medium Laser Battle Cannon > --- INVENTORY -------- Titanium Leg Wheel Wheel Combat Airjet Medium Storage Unit High-capacity Storage Unit Trap Scanner Machine Analyzer Terrain Scanner Advanced Targeting Computer Light Armor Plating Shock Absorption System Assault Rifle Subdweller Machine Gun Flak Cannon Improved Datajack Mining Laser Heavy Explosive Trap Heavy Explosive Trap Heavy Explosive Trap [Rating: 16] Favorites ----------- Power Ion Engine Engine Ion Engine Power Core Light Nuclear Core Propulsion Light Treads Treads Light Treads Wheel Compact Wheel Utility High-capacity Storage Unit Storage High-capacity Storage Unit Protection Power Shielding Weapon Medium Laser Energy Gun Medium Laser Ballistic Gun Light Assault Rifle Ballistic Cannon Battle Cannon Build | -11 -10 -10 -10 ------- Run | Yrd Mat Min Sub Slots Evolved . | . . . . Power . | . . . . Propulsion . | . . . . Utility . | . . . . Weapon . | . . . . Parts Attached 24 | 6 8 5 5 Power 4 | 1 1 1 1 Engine 3 | 1 1 . 1 Core 1 | . . 1 . Reactor . | . . . . Propulsion 6 | 2 3 1 . Treads 2 | . 1 1 . Leg . | . . . . Wheel 4 | 2 2 . . Hover . | . . . . Flight . | . . . . Utility 8 | 1 3 2 2 Device . | . . . . Storage 3 | 1 2 . . Processor . | . . . . Hackware . | . . . . Protection 5 | . 1 2 2 Artifact . | . . . . Weapon 6 | 2 1 1 2 Energy Gun 3 | 1 1 1 . Energy Cannon . | . . . . Ballistic Gun 1 | 1 . . . Ballistic Cannon 2 | . . . 2 Launcher . | . . . . Special Weapon . | . . . . Impact Weapon . | . . . . Slashing Weapon . | . . . . Piercing Weapon . | . . . . Special Melee Weapon . | . . . . Unidentified Prototypes . | . . . . Parts Lost 10 | . 3 4 3 Power 3 | . 1 1 1 Propulsion 3 | . 1 2 . Utility 1 | . . . 1 Weapon 3 | . 1 1 1 Highest Loss Streak 4 | . 1 4 3 To Critical Strikes . | . . . . Average Backups 8 | 1 5 9 12 Power . | . 1 . . Propulsion 2 | 1 2 3 2 Utility 3 | . 1 3 5 Weapon 1 | . . 2 2 Tool/Special . | . . . . Unused Backups 15 | . . . 15 Power . | . . . . Propulsion 4 | . . . 4 Utility 6 | . . . 6 Weapon 4 | . . . 4 Tool/Special 1 | . . . 1 Average Slot Usage (%) 91 | . 93 83 93 Engine 5 | . 9 1 4 Core 3 | . . 1 9 Treads 15 | . 1 24 28 Wheel 12 | . 26 3 . Storage 12 | . 14 14 8 Protection 13 | . 13 14 13 Energy Gun 12 | . 14 9 13 Ballistic Gun 10 | . 14 14 4 Ballistic Cannon 3 | . . . 9 Peak Build Rating 16 | 6 7 14 16 Average Rating 9 | 5 6 7 14 On Entrance 6 | . 6 7 14 Naked Turns . | . . . . Heaviest Build 53 | 13 49 51 53 Greatest Support 40 | 26 26 40 40 Greatest Overweight (x) 4 | . 4 1 1 Average Overweight (x) . | . . 1 . Largest Inventory Capacity 20 | 8 20 20 20 Average Capacity 17 | 7 18 20 14 Most Carried 20 | 4 7 20 20 Average Carried 9 | 2 5 11 14 Final Capacity 20 | 8 20 20 5 Final Carried 20 | 4 6 20 5 Class Distribution -------------------- 100% | Mutant Dominant Class ---------------- Mutant | -10/Materials Mutant | -10/Mines Mutant | -10/Subcaves Resources | -11 -10 -10 -10 ----------- Run | Yrd Mat Min Sub Matter Collected 625 | 221 144 78 182 Remotely . | . . . . Salvage Created 562 | . 328 . 234 Parts 36 | . 26 . 10 Haulers Intercepted . | . . . . Recyclers Shooed 1 | . 1 . . Parts Field Recycled . | . . . . Retrieved Matter . | . . . . Parts Self-Destructed 7 | . . . 7 Prevented . | . . . . Kills | -11 -10 -10 -10 ------- Run | Yrd Mat Min Sub Combat Hostiles Destroyed 18 | . 12 . 6 Guns 14 | . 12 . 2 Cannons 4 | . . . 4 Classes Destroyed 4 | . 3 . 1 Worker 1 | . 1 . . Swarmer 8 | . 8 . . Grunt 4 | . 4 . . Subdweller 6 | . . . 6 Best Kill Streak 3 | . 3 . 2 Combat Bots Only 3 | . 3 . 2 Max Kills in Single Turn 2 | . 2 . 1 Gunslinging 1 | . 1 . . Exploded . | . . . . Melee . | . . . . Uniques/NPCs Destroyed . | . . . . Combat | -11 -10 -10 -10 -------- Run | Yrd Mat Min Sub Hostile Shots Fired 128 | . 79 1 48 Missed 31 | . 13 1 17 Hits 97 | . 66 . 31 Projectile 97 | . 66 . 31 Critical Strikes 3 | . 2 . 1 Actively Blocked 2 | . 2 . . Damage Taken 1709 | . 616 325 768 Core 261 | . 174 . 87 Absorbed by Shields . | . . . . Redirected to Shielding 46 | . 23 23 . Core Remaining (%) 100 | 100 . . . Volleys Fired 73 | . 47 2 24 Largest 2 | . 2 1 2 Hottest 83 | . 70 20 83 Shots Fired 142 | . 93 4 45 Gun 111 | . 93 4 14 Cannon 31 | . . . 31 Launcher . | . . . . Special . | . . . . Kinetic 82 | . 47 4 31 Thermal 48 | . 34 . 14 Explosive . | . . . . Electromagnetic 12 | . 12 . . Robot Hit Streak 10 | . 8 6 10 Robot Miss Streak 7 | . 7 1 3 Penetration Max . | . . . . Secondary Targets 4 | . 4 . . Max Gunslinging Chain 1 | . 1 . . Shots Hit Robots 84 | . 47 3 34 Core Hits 43 | . 22 2 19 Critical Kills . | . . . . Critical Parts Destroyed 1 | . 1 . . Critical Strikes 3 | . 2 . 1 Burn 1 | . 1 . . Destroy 1 | . 1 . . Blast 1 | . . . 1 Melee Attacks . | . . . . Impact . | . . . . Slashing . | . . . . Piercing . | . . . . Sneak Attacks . | . . . . Combat Hostiles . | . . . . Follow-up Attacks . | . . . . Damage Inflicted 1150 | . 529 23 598 Guns 677 | . 529 23 125 Cannons 473 | . . . 473 Explosions . | . . . . Melee . | . . . . Ramming . | . . . . Kinetic 678 | . 182 23 473 Thermal 400 | . 275 . 125 Explosive . | . . . . Electromagnetic 72 | . 72 . . Impact . | . . . . Slashing . | . . . . Piercing . | . . . . Highest Corruption 10 | . . 10 10 Average Corruption 10 | . . 10 10 Corruption Purged . | . . . . Corruption Blocked . | . . . . Effects 51 | . . 23 28 Message Errors 14 | . . 5 9 Matter Fused 11 | . . 4 7 Heat Flow Errors 5 | . . 3 2 Energy Discharges 8 | . . 5 3 Data Loss (minor) 6 | . . 3 3 Data Loss (major) 2 | . . . 2 Misfires 3 | . . 2 1 Alerts 2 | . . 1 1 Overload Shots . | . . . . Overflow Damage . | . . . . Projectiles . | . . . . Explosions . | . . . . Melee . | . . . . Knockbacks 15 | . . . 15 Impact . | . . . . Kinetic 11 | . . . 11 Secondary 4 | . . . 4 Self-Inflicted Damage . | . . . . Shots . | . . . . Rammed . | . . . . Targets Rammed . | . . . . Kicked . | . . . . Crushed . | . . . . Highest Temperature 259 | . 210 259 243 Average Temperature 74 | . 68 104 82 Received Heat Transfer 623 | . 129 . 494 Siege Activations . | . . . . Martial Activations . | . . . . Shielding Activations . | . . . . Robots Disrupted . | . . . . Combat Hostiles . | . . . . Robots Corrupted . | . . . . Combat Hostiles . | . . . . Parts Fried . | . . . . Impact Corruptions . | . . . . Robots Melted . | . . . . Combat Hostiles . | . . . . Parts Melted 4 | . 2 . 2 Heat Transferred 1258 | . 888 . 370 Parts Sabotaged . | . . . . Parts Stolen . | . . . . Parts Stripped . | . . . . Power Chain Reactions . | . . . . Alert | -11 -10 -10 -10 ------- Run | Yrd Mat Min Sub Maximum Alert Level . | . . . . Low Security (%) 100 | 100 100 100 . Level 1 . | . . . . Level 2 . | . . . . Level 3 . | . . . . Level 4 . | . . . . Level 5 . | . . . . High Security . | . . . . Max Security . | . . . . Peak Influence 100 | . 100 58 . Initial . | . . . . Average 19 | . 27 6 . Influence Increases 408 | . 345 63 . Destroy 0b10 Robot/C 280 | . 240 40 . Destroy 0b10 Robot/NC 5 | . 5 . . Destroy Leader 60 | . 50 10 . Allied During Kill 8 | . . 8 . Successful Hack 25 | . 20 5 . Lose Combat Pursuer 30 | . 30 . . Influence Decreases 408 | . 345 63 . Time Decay 378 | . 315 63 . Lost Part 30 | . 30 . . Squads Dispatched 4 | . 3 1 . Investigation 2 | . 1 1 . Extermination . | . . . . Reinforcement 2 | . 2 . . Assault . | . . . . Garrison . | . . . . Intercept . | . . . . Searches Triggered . | . . . . Construction Impeded . | . . . . Haulers Reinforced . | . . . . Active Scanning Responses . | . . . . Cargo Convoy Interrupts . | . . . . Stealth | -11 -10 -10 -10 --------- Run | Yrd Mat Min Sub Distress Signals 2 | . 2 . . Communications Jammed . | . . . . Distress Signals . | . . . . Times Spotted 38 | . 28 2 8 Peak Tracking Total 4 | . 4 2 3 Tactical Retreats 2 | . 2 . . Traps | -11 -10 -10 -10 ------- Run | Yrd Mat Min Sub Traps Triggered 2 | . 1 . 1 Indirectly . | . . . . Trap Hack Attempts . | . . . . Triggered . | . . . . Disarmed . | . . . . Reprogrammed . | . . . . Reused . | . . . . Traps Extracted . | . . . . Installed . | . . . . Triggered . | . . . . Most Traps Carried 3 | . . 3 3 Machines | -11 -10 -10 -10 ---------- Run | Yrd Mat Min Sub Machines Disabled 1 | . . . 1 Max in Single Turn 1 | . . . 1 Machines Repaired . | . . . . Machines Dismantled . | . . . . Machines Sabotaged . | . . . . Overloaded Fab Kills . | . . . . Hacking | -11 -10 -10 -10 --------- Run | Yrd Mat Min Sub Machines Accessed 9 | . 6 2 1 Terminals 7 | . 6 1 . Fabricators . | . . . . Repair Stations . | . . . . Recycling Units . | . . . . Scanalyzers . | . . . . Garrison Access . | . . . . Total Hacks 31 | . 23 4 4 Successful 18 | . 11 3 4 Failed 13 | . 12 1 . Catastrophic 1 | . 1 . . Database Lockouts . | . . . . Manual 24 | . 22 2 . Terminals 26 | . 23 3 . Fabricators . | . . . . Repair Stations . | . . . . Recycling Units . | . . . . Scanalyzers . | . . . . Garrison Access . | . . . . Terminal Hacks 8 | . 2 2 4 Record 4 | . . . 4 Open Door 1 | . . 1 . Terminal Index 1 | . 1 . . Recall Reinforcements 1 | . 1 . . Zone Layout 1 | . . 1 . Fabricator Hacks . | . . . . Repair Station Hacks . | . . . . Recycling Unit Hacks . | . . . . Scanalyzer . | . . . . Garrison Access Hacks . | . . . . Unauthorized Hacks 10 | . 9 1 . Terminals 10 | . 9 1 . Track 1 | . . 1 . Assimilate 2 | . 2 . . Botnet 2 | . 2 . . Skim 5 | . 5 . . Fabricators . | . . . . Repair Stations . | . . . . Recycling Units . | . . . . Scanalyzers . | . . . . Garrison Access . | . . . . Data Cores Recovered . | . . . . Used . | . . . . Hacking Detections 6 | . 6 . . Full Trace Events . | . . . . Feedback Events . | . . . . Feedback Blocked . | . . . . Robot Schematics Acquired . | . . . . Robots Built . | . . . . Authchips . | . . . . Time . | . . . . Total Robot Build Rating . | . . . . Part Schematics Acquired . | . . . . Parts Built . | . . . . Authchips . | . . . . Time . | . . . . Total Part Build Rating . | . . . . Parts Repaired . | . . . . Time . | . . . . Parts Recycled . | . . . . Recycled Matter . | . . . . Retrieved Matter . | . . . . Retrieved Components . | . . . . Parts Scanalyzed . | . . . . Part Schematics Acquired . | . . . . Parts Damaged . | . . . . Bothacking | -11 -10 -10 -10 ------------ Run | Yrd Mat Min Sub Used RIF Installer . | . . . . Robots Hacked . | . . . . Non-combat . | . . . . Combat . | . . . . Robot Hacks Applied . | . . . . Relay Couplers Released . | . . . . Fabnet Peak Effective % . | . . . . Robots Rewired . | . . . . Allies Hacked . | . . . . Hacks Repelled . | . . . . Allies | -11 -10 -10 -10 -------- Run | Yrd Mat Min Sub Total Allies 3 | . . 3 . Largest Group 3 | . . 3 3 Highest-Rated Group 40 | . . 40 40 Highest-Rated Ally 16 | . . 16 16 Total Orders . | . . . . Ally Attacks 19 | . . 14 5 Total Damage 168 | . . 124 44 Kills 3 | . . 2 1 Allies Corrupted . | . . . . Allies Melted . | . . . . Intel | -11 -10 -10 -10 ------- Run | Yrd Mat Min Sub Active Infowar (turns) . | . . . . Robot Analysis Total . | . . . . Derelict Logs Recovered 3 | . . 1 2 Drone Launches . | . . . . Drone Recoveries . | . . . . Exploration | -11 -10 -10 -10 ------------- Run | Yrd Mat Min Sub Turns Passed 3028 | 57 1299 689 983 Spaces Moved 1501 | 51 734 278 438 Core 4 | 4 . . . Treads 683 | . . 245 438 Legs . | . . . . Wheels 814 | 47 734 33 . Hover . | . . . . Flight . | . . . . Fastest Speed 50 | 50 90 105 160 Average Speed 155 | 86 105 223 204 Slowest Speed 240 | 90 145 240 240 Overloaded Moves . | . . . . Propulsion Burnouts . | . . . . Robots Hopped . | . . . . Potential Cave-ins 1 | . . 1 . Cave-ins Triggered 1 | . . 1 . Exploration Rate (%) 46 | 4 96 44 40 Regions Visited 3 Branch Regions 2 Pre-discovered Areas 1 | . 1 . . Known Exits Taken . | . . . . Unknown Exits Taken 3 | 1 1 1 . Scrap Searched 4 | . . 1 3 Spaces Dug . | . . . . Terrain Destroyed . | . . . . Melee . | . . . . Projectile . | . . . . AOE . | . . . . Terrain Rammed . | . . . . Walls Destroyed . | . . . . Machines Disabled . | . . . . Actions | -11 -10 -10 -10 --------- Run | Yrd Mat Min Sub Total 2055 | 60 1170 343 482 Wait 417 | . 378 39 . Move 1497 | 50 733 276 438 Hop . | . . . . Pick Up 27 | 4 2 16 5 Fast Attach 14 | 6 1 4 3 Attach 6 | . 3 2 1 Detach 1 | . . 1 . Swap 6 | . 5 . 1 Drop 12 | . 1 2 9 Fire 73 | . 47 2 24 Melee . | . . . . Ram . | . . . . Kick . | . . . . Crush . | . . . . Escape Stasis 1 | . . 1 . Rewire . | . . . . Trap . | . . . . Miscellaneous 1 | . . . 1 Route ------- -11/Scrapyard -10/Materials (discovered 5 exits: *Mat x3 / *Min x2) -10/Mines (discovered 3 exits: *Mat x2 / *Sub) -10/Subcaves (discovered 3 exits: Mat x2 / Rec) History --------- Turn | Location | Event 10 | -11/Scrapyard | Discovered new exit (range 16) 58 | -11/Scrapyard | Entered Materials 160 | -10/Materials | Discovered new exit (range 16) 206 | -10/Materials | Discovered new exit (range 13) 239 | -10/Materials | Discovered new exit (range 16) 315 | -10/Materials | Build established: Mutant 451 | -10/Materials | Discovered new exit (range 8) 651 | -10/Materials | Core integrity fell below 50% 788 | -10/Materials | Discovered new exit (range 16) 1028 | -10/Materials | Learned Storage trap positions 1132 | -10/Materials | Learned 4 Recycling zone layouts 1246 | -10/Materials | Learned location of Mines (-10) 1285 | -10/Materials | Learned 4 Subcaves zone layouts 1357 | -10/Materials | Entered Mines 1358 | -10/Mines | Assembled infested the area 1358 | -10/Mines | Identified exit to Materials 1412 | -10/Mines | Learned 2 Materials zone layouts 1422 | -10/Mines | Crushed by falling debris 1423 | -10/Mines | System corruption reached 10% 1453 | -10/Mines | Lost 4 parts (1p2n1w) 1568 | -10/Mines | Assisted by bots powering up and referring to "LRC-V3" 1598 | -10/Mines | Found a hidden stash of uninstalled traps 1958 | -10/Mines | Met a Derelict shopkeep closing up shop 2034 | -10/Mines | Discovered new exit (range 6) 2046 | -10/Mines | Entered Subcaves 2046 | -10/Subcaves | Accompanied by 3 allies 2047 | -10/Subcaves | Approached by a straggling Scientist 2047 | -10/Subcaves | Identified exit to Materials 2249 | -10/Subcaves | A swath of the cavern ceiling suddenly collapsed 2779 | -10/Subcaves | Visited Clippyterm 2783 | -10/Subcaves | Identified exit to Recycling 2871 | -10/Subcaves | Core integrity fell below 20% 3004 | -10/Subcaves | Visited 4L-MR0's lab 3029 | -10/Subcaves | Destroyed by Q5-9PY(R) with Subdweller Beam Cannon Last Messages --------------- WP-J5J(c): "I think it's somewhere southwest of here" 02914_ System corrupted: Substantial component data lost. 02938_ MPEQWE4H8LQA1R:VD5EDNYTP4 N8M=|S 02957_ System corrupted: Component data lost. WP-J5J(c): "I think it's somewhere south of here" 02974_ System corrupted: Energy discharge (-52). 03004_ Critical hit (Meltdown: +260). 03006_ Mak. Power Source destroyed. 03010_ E7-0QE(R) knocked back. 03013_ Q5-9PY(R) knocked back. WP-J5J(c): "I think it's somewhere south of here" 03016_ E7-0QE(R) knocked back. 03018_ Scrap Shield destroyed. 03019_ Q5-9PY(R) knocked back. 03022_ 4I-G2C(R) destroyed. 03022_ Machine disabled. 03025_ E7-0QE(R) knocked back. 03025_ Q5-9PY(R) knocked back. 03025_ E7-0QE(R) destroyed. 03027_ Battle Cannon destroyed. Map ----- +----------------------------------------------------+ | | | | | | | | | | | | | | | | | | | | | | | | | | | | | | | | | | | | | | | | | | | ?????????????????????####????????????????????????? | | ????????????????????##<<